fUST/lending_fUST_20250810
["ID","MTS","AMOUNT","RATE_DAILY","PERIOD"]
[378337647,1754831451436,-215.44987349,0.00021907,3]
[378337648,1754831451445,-499.38,0.00021907,2]
[378337649,1754831451455,-968.51,0.00021914,2]
[378337650,1754831451464,-460.0,0.00021915,2]
[378337651,1754831451475,-460.0,0.00021915,2]
[378337652,1754831451484,-460.0,0.00021915,2]
[378337653,1754831451494,-460.0,0.00021915,2]
[378337654,1754831451508,-460.0,0.00021915,2]
[378337655,1754831451518,-460.0,0.00021915,2]
[378337656,1754831451528,-460.0,0.00021915,2]
[378337657,1754831451538,-2333.16,0.00021915,2]
[378337658,1754831451547,-688.53,0.00021915,2]
[378337659,1754831451556,-460.0,0.00021915,2]
[378337660,1754831451566,-1478.91,0.00021915,2]
[378337661,1754831451575,-1486.19,0.00021915,2]
[378337662,1754831451585,-460.0,0.00021915,2]
[378337663,1754831451595,-460.0,0.00021915,2]
[378337664,1754831451604,-460.0,0.00021915,2]
[378337665,1754831451613,-291.01,0.00021915,2]
[378337666,1754831451623,-1475.74,0.00021915,2]
[378337667,1754831451632,-460.0,0.00021915,2]
[378337668,1754831451642,-460.0,0.00021915,2]
[378337669,1754831451651,-460.0,0.00021915,2]
[378337670,1754831451661,-638.15,0.00021915,2]
[378337671,1754831451670,-460.0,0.00021915,2]
[378337672,1754831451680,-460.0,0.00021915,2]
[378337673,1754831451689,-460.0,0.00021915,2]
[378337674,1754831451699,-295.61,0.00021916,2]
[378337675,1754831451709,-479.62,0.00021916,2]
[378337676,1754831451718,-589.1,0.00021916,2]
[378337677,1754831451727,-870.7,0.00021916,2]
[378337678,1754831451737,-903.0,0.00021916,2]
[378337679,1754831451746,-466.4134748,0.00021916,2]
[378337680,1754831451756,-3431.58,0.00021916,2]
[378337681,1754831451765,-704.59,0.00021916,2]
[378337682,1754831451774,-1262.61,0.00021916,2]
[378337683,1754831451784,-982.9,0.00021916,2]
[378337684,1754831451794,-1207.5,0.00021916,2]
[378337685,1754831451804,-942.57,0.00021916,2]
[378337686,1754831451813,-1164.74,0.00021916,2]
[378337687,1754831451823,-890.83,0.00021916,2]
[378337688,1754831451832,-1107.82,0.00021916,2]
[378337689,1754831451842,-500.0,0.00021917,2]
[378337690,1754831451851,-500.0,0.00021917,2]
[378337691,1754831451861,-500.0,0.00021917,2]
[378337692,1754831451870,-500.0,0.00021917,2]
[378337693,1754831451880,-588.32363811,0.00021917,2]
[378337694,1754831451889,-4601.44,0.00021917,2]
[378337695,1754831451899,-152.57967547,0.00021918,2]
[378337696,1754831451908,-150.0,0.00021918,2]
[378337697,1754831451917,-3607.90105162,0.00021995,2]
[378337698,1754831451927,-219.0,0.00022,2]
[378337699,1754831451937,-1594.76,0.00022,2]
[378337700,1754831451946,-244.02,0.00022,2]
[378337701,1754831451956,-167.0,0.00022,2]
[378337702,1754831451965,-215.10094812,0.00022017,2]
[378337703,1754831451974,-1500.0,0.00022068,2]
[378337704,1754831451984,-1500.0,0.00022068,2]
[378337705,1754831451994,-321.88900524,0.00022071,2]
[378337706,1754831452003,-360.0,0.00022081,2]
[378337707,1754831452013,-352.60052233,0.00022087,2]
[378337708,1754831452022,-968.51,0.00022088,2]
[378337709,1754831452031,-499.38,0.00022181,2]
[378337710,1754831452041,-460.0,0.00022189,2]
[378337711,1754831452050,-460.0,0.00022189,2]
[378337712,1754831452059,-460.0,0.00022189,2]
[378337713,1754831452069,-460.0,0.00022189,2]
[378337714,1754831452079,-460.0,0.00022189,2]
[378337715,1754831452088,-460.0,0.00022189,2]
[378337716,1754831452098,-2333.16,0.00022189,2]
[378337717,1754831452107,-688.53,0.00022189,2]
[378337718,1754831452117,-460.0,0.00022189,2]
[378337719,1754831452126,-1478.91,0.00022189,2]
[378337720,1754831452136,-1486.19,0.00022189,2]
[378337721,1754831452145,-460.0,0.00022189,2]
[378337722,1754831452154,-460.0,0.00022189,2]
[378337723,1754831452164,-415.31,0.00022189,2]
[378337724,1754831452174,-1475.74,0.00022189,2]
[378337725,1754831452187,-219.11,0.00022189,2]
[378337726,1754831452197,-460.0,0.00022189,2]
[378337727,1754831452207,-460.0,0.00022189,2]
[378337728,1754831452216,-638.15,0.00022189,2]
[378337729,1754831452226,-460.0,0.00022189,2]
[378337730,1754831452236,-460.0,0.00022189,2]
[378337731,1754831452245,-460.0,0.00022189,2]
[378337732,1754831452255,-479.62,0.0002219,2]
[378337733,1754831452265,-589.1,0.0002219,2]
[378337734,1754831452274,-870.7,0.0002219,2]
[378337735,1754831452284,-903.0,0.0002219,2]
[378337736,1754831452293,-3431.58,0.0002219,2]
[378337737,1754831452303,-704.59,0.0002219,2]
[378337738,1754831452313,-1262.61,0.0002219,2]
[378337739,1754831452322,-982.9,0.0002219,2]
[378337740,1754831452332,-1207.5,0.0002219,2]
[378337741,1754831452342,-942.57,0.0002219,2]
[378337742,1754831452351,-968.51,0.0002219,2]
[378337743,1754831452361,-1164.74,0.0002219,2]
[378337744,1754831452371,-890.83,0.0002219,2]
[378337745,1754831452380,-1107.82,0.0002219,2]
[378337746,1754831452390,-167.0,0.00022192,7]
[378337747,1754831452399,-151.0,0.00022193,2]
[378337748,1754831452409,-2000.0,0.00022216,2]
[378337749,1754831452418,-2000.0,0.00022216,2]
[378337750,1754831452432,-1000.0,0.00022221,2]
[378337751,1754831452442,-860.40379246,0.00022312,2]
[378337752,1754831452451,-1360.0,0.000224,4]
[378337753,1754831452461,-499.38,0.00022455,2]
[378337754,1754831452470,-460.0,0.00022463,2]
[378337755,1754831452480,-460.0,0.00022463,2]
[378337756,1754831452490,-226.85672312,0.00022463,2]
[378337757,1754831452499,-460.0,0.00022463,2]
[378337758,1754831452509,-460.0,0.00022463,2]
[378337759,1754831452518,-2333.16,0.00022463,2]
[378337760,1754831452527,-688.53,0.00022463,2]
[378337761,1754831452536,-460.0,0.00022463,2]
[378337762,1754831452546,-1478.91,0.00022463,2]
[378337763,1754831452556,-1486.19,0.00022463,2]
[378337764,1754831452566,-460.0,0.00022463,2]
[378337765,1754831452575,-460.0,0.00022463,2]
[378337766,1754831452585,-1475.74,0.00022463,2]
[378337767,1754831452595,-460.0,0.00022463,2]
[378337768,1754831452604,-460.0,0.00022463,2]
[378337769,1754831452614,-638.15,0.00022463,2]
[378337770,1754831452623,-460.0,0.00022463,2]
[378337771,1754831452633,-460.0,0.00022463,2]
[378337772,1754831452642,-460.0,0.00022463,2]
[378337773,1754831452651,-479.62,0.00022464,2]
[378337774,1754831452661,-589.1,0.00022464,2]
[378337775,1754831452670,-870.7,0.00022464,2]
[378337776,1754831452679,-903.0,0.00022464,2]
[378337777,1754831452689,-3431.58,0.00022464,2]
[378337778,1754831452700,-704.59,0.00022464,2]
[378337779,1754831452710,-1262.61,0.00022464,2]
[378337780,1754831452719,-982.9,0.00022464,2]
[378337781,1754831452728,-942.57,0.00022464,2]
[378337782,1754831452737,-1164.74,0.00022464,2]
[378337783,1754831452747,-890.83,0.00022464,2]
[378337784,1754831452756,-1107.82,0.00022464,2]
[378337785,1754831452766,-285.90307636,0.00022466,2]
[378337786,1754831452775,-22864.16298873,0.00022487,2]
[378337787,1754831452784,-1287.55602096,0.00022515,2]
[378337788,1754831452794,-153.0,0.00022588,2]
[378337789,1754831452803,-153.0,0.00022588,2]
[378337790,1754831452812,-968.51,0.00022599,2]
[378337791,1754831452821,-151.0,0.000226,7]
[378337792,1754831452831,-1935.90853304,0.00022607,2]
[378337793,1754831452840,-2000.0,0.00022616,2]
[378337794,1754831452849,-2000.0,0.00022616,2]
[378337795,1754831452858,-460.0,0.00022628,2]
[378337796,1754831452867,-3607.90105162,0.00022637,2]
[378337797,1754831452877,-499.38,0.00022729,2]
[378337798,1754831452886,-460.0,0.00022737,2]
[378337799,1754831452895,-460.0,0.00022737,2]
[378337800,1754831452905,-460.0,0.00022737,2]
[378337801,1754831452915,-460.0,0.00022737,2]
[378337802,1754831452924,-2333.16,0.00022737,2]
[378337803,1754831452933,-688.53,0.00022737,2]
[378337804,1754831452943,-460.0,0.00022737,2]
[378337805,1754831452952,-1478.91,0.00022737,2]
[378337806,1754831452962,-1486.19,0.00022737,2]
[378337807,1754831452971,-460.0,0.00022737,2]
[378337808,1754831452980,-1475.74,0.00022737,2]
[378337809,1754831452990,-460.0,0.00022737,2]
[378337810,1754831452999,-460.0,0.00022737,2]
[378337811,1754831453009,-638.15,0.00022737,2]
[378337812,1754831453018,-460.0,0.00022737,2]
[378337813,1754831453126,-255.11675244,0.00022737,2]
[378337814,1754831453137,-460.0,0.00022737,2]
[378337815,1754831453147,-479.62,0.00022738,2]
[378337816,1754831453158,-589.1,0.00022738,2]
[378337817,1754831453168,-870.7,0.00022738,2]
[378337818,1754831453178,-903.0,0.00022738,2]
[378337819,1754831453188,-3431.58,0.00022738,2]
[378337820,1754831453198,-704.59,0.00022738,2]
[378337821,1754831453208,-1262.61,0.00022738,2]
[378337822,1754831453218,-982.9,0.00022738,2]
[378337823,1754831453228,-942.57,0.00022738,2]
[378337824,1754831453239,-1164.74,0.00022738,2]
[378337825,1754831453250,-890.83,0.00022738,2]
[378337826,1754831453260,-1107.82,0.00022738,2]
[378337827,1754831453271,-151.0,0.00022741,2]
[378337828,1754831453280,-2500.0,0.00022764,2]
[378337829,1754831453290,-2500.0,0.00022764,2]
[378337830,1754831453300,-1500.0,0.00022768,2]
[378337831,1754831453309,-1000.0,0.00022768,2]
[378337832,1754831453319,-151.0,0.000229,5]
[378337833,1754831453331,-3441.61516985,0.00022902,2]
[378337834,1754831453340,-968.51,0.00022908,2]
[378337835,1754831453350,-2897.00104715,0.00022958,2]
[378337836,1754831453359,-383.19,0.00022988,2]
[378337837,1754831453369,-843.0869304,0.00023,3]
[378337838,1754831453379,-160.0,0.00023,3]
[378337839,1754831453389,-160.0,0.00023,3]
[378337840,1754831453398,-160.0,0.00023,2]
[378337841,1754831453409,-231.96268195,0.00023,3]
[378337842,1754831453419,-160.0,0.00023,3]
[378337843,1754831453434,-216.64838636,0.00023,3]
[378337844,1754831453445,-160.0,0.00023,3]
[378337845,1754831453454,-160.0,0.00023,3]
[378337846,1754831453464,-499.38,0.00023003,2]
[378337847,1754831453474,-342.19357024,0.00023011,2]
[378337848,1754831453484,-460.0,0.00023011,2]
[378337849,1754831453493,-460.0,0.00023011,2]
[378337850,1754831453505,-460.0,0.00023011,2]
[378337851,1754831453515,-2333.16,0.00023011,2]
[378337852,1754831453525,-688.53,0.00023011,2]
[378337853,1754831453535,-460.0,0.00023011,2]
[378337854,1754831453545,-1478.91,0.00023011,2]
[378337855,1754831453555,-1486.19,0.00023011,2]
[378337856,1754831453565,-460.0,0.00023011,2]
[378337857,1754831453574,-1475.74,0.00023011,2]
[378337858,1754831453584,-460.0,0.00023011,2]
[378337859,1754831453594,-460.0,0.00023011,2]
[378337860,1754831453604,-638.15,0.00023011,2]
[378337861,1754831453614,-460.0,0.00023011,2]
[378337862,1754831453623,-460.0,0.00023011,2]
[378337863,1754831453633,-479.62,0.00023012,2]
[378337864,1754831453643,-589.1,0.00023012,2]
[378337865,1754831453652,-870.7,0.00023012,2]
[378337866,1754831453662,-903.0,0.00023012,2]
[378337867,1754831453671,-3431.58,0.00023012,2]
[378337868,1754831453681,-704.59,0.00023012,2]
[378337869,1754831453690,-1262.61,0.00023012,2]
[378337870,1754831453700,-982.9,0.00023012,2]
[378337871,1754831453709,-942.57,0.00023012,2]
[378337872,1754831453718,-1164.74,0.00023012,2]
[378337873,1754831453727,-890.83,0.00023012,2]
[378337874,1754831453737,-1107.82,0.00023012,2]
[378337875,1754831453746,-151.0,0.00023014,2]
[378337876,1754831453756,-19187.29552238,0.00023014,2]
[378337877,1754831453766,-167.0,0.00023014,7]
[378337878,1754831453776,-200.0,0.0002304,15]
[378337879,1754831453786,-200.0,0.0002304,15]
[378337880,1754831453796,-300.0,0.0002304,15]
[378337881,1754831453807,-968.51,0.00023052,2]
[378337882,1754831453817,-968.51,0.00023052,2]
[378337883,1754831453827,-968.51,0.00023052,2]
[378337884,1754831453837,-968.51,0.00023052,2]
[378337885,1754831453847,-968.53869021,0.00023052,2]
[378337886,1754831453856,-2000.0,0.00023164,2]
[378337887,1754831453868,-1089.80024048,0.00023164,2]
[378337888,1754831453878,-560.0,0.00023176,2]
[378337889,1754831453888,-372.91866161,0.00023183,2]
[378337890,1754831453897,-500.0,0.00023183,2]
[378337891,1754831453907,-1594.76,0.0002319,2]
[378337892,1754831453917,-5377.52370289,0.00023196,2]
[378337893,1754831453926,-499.38,0.00023277,2]
[378337894,1754831453935,-460.0,0.00023285,2]
[378337895,1754831453945,-460.0,0.00023285,2]
[378337896,1754831453954,-460.0,0.00023285,2]
[378337897,1754831453963,-2333.16,0.00023285,2]
[378337898,1754831453972,-688.53,0.00023285,2]
[378337899,1754831453982,-460.0,0.00023285,2]
[378337900,1754831453991,-1478.91,0.00023285,2]
[378337901,1754831454000,-1486.19,0.00023285,2]
[378337902,1754831454009,-460.0,0.00023285,2]
[378337903,1754831454019,-1475.74,0.00023285,2]
[378337904,1754831454028,-460.0,0.00023285,2]
[378337905,1754831454037,-460.0,0.00023285,2]
[378337906,1754831454047,-638.15,0.00023285,2]
[378337907,1754831454056,-460.0,0.00023285,2]
[378337908,1754831454065,-460.0,0.00023285,2]
[378337909,1754831454075,-479.62,0.00023286,2]
[378337910,1754831454086,-589.1,0.00023286,2]
[378337911,1754831454095,-870.7,0.00023286,2]
[378337912,1754831454105,-903.0,0.00023286,2]
[378337913,1754831454115,-3431.58,0.00023286,2]
[378337914,1754831454124,-704.59,0.00023286,2]
[378337915,1754831454134,-1262.61,0.00023286,2]
[378337916,1754831454143,-982.9,0.00023286,2]
[378337917,1754831454153,-942.57,0.00023286,2]
[378337918,1754831454162,-1164.74,0.00023286,2]
[378337919,1754831454171,-890.83,0.00023286,2]
[378337920,1754831454181,-1107.82,0.00023286,2]
[378337921,1754831454190,-500.0,0.00023288,2]
[378337922,1754831454199,-151.0,0.000233,6]
[378337923,1754831454208,-500.0,0.00023307,2]
[378337924,1754831454217,-500.0,0.00023307,2]
[378337925,1754831454226,-500.0,0.00023307,2]
[378337926,1754831454235,-500.21872809,0.00023307,2]
[378337927,1754831454245,-3000.0,0.00023312,2]
[378337928,1754831454254,-3000.0,0.00023312,2]
[378337929,1754831454263,-2000.0,0.00023316,2]
[378337930,1754831454273,-150.0,0.00023335,2]
[378337931,1754831454283,-500.0,0.00023335,2]
[378337932,1754831454292,-500.0,0.00023335,2]
[378337933,1754831454302,-400.0,0.00023335,2]
[378337934,1754831454311,-5150.22408382,0.00023402,2]
[378337935,1754831454321,-5404.75069081,0.00023409,2]
[378337936,1754831454330,-382.0,0.00023414,2]
[378337937,1754831454340,-255.44,0.00023436,2]
[378337938,1754831454349,-218.612,0.00023457,3]
[378337939,1754831454359,-160.0,0.0002346,3]
[378337940,1754831454368,-7743.63413216,0.00023491,2]
[378337941,1754831454377,-499.38,0.00023551,2]
[378337942,1754831454386,-460.0,0.00023559,2]
[378337943,1754831454396,-460.0,0.00023559,2]
[378337944,1754831454406,-460.0,0.00023559,2]
[378337945,1754831454416,-2333.16,0.00023559,2]
[378337946,1754831454429,-688.53,0.00023559,2]
[378337947,1754831454438,-352.89,0.00023559,2]
[378337948,1754831454447,-1478.91,0.00023559,2]
[378337949,1754831454457,-1486.19,0.00023559,2]
[378337950,1754831454466,-296.31328811,0.00023559,2]
[378337951,1754831454476,-1475.74,0.00023559,2]
[378337952,1754831454485,-460.0,0.00023559,2]
[378337953,1754831454494,-460.0,0.00023559,2]
[378337954,1754831454505,-638.15,0.00023559,2]
[378337955,1754831454515,-460.0,0.00023559,2]
[378337956,1754831454525,-460.0,0.00023559,2]
[378337957,1754831454535,-479.62,0.0002356,2]
[378337958,1754831454544,-589.1,0.0002356,2]
[378337959,1754831454553,-870.7,0.0002356,2]
[378337960,1754831454562,-903.0,0.0002356,2]
[378337961,1754831454571,-3431.58,0.0002356,2]
[378337962,1754831454581,-704.59,0.0002356,2]
[378337963,1754831454590,-1262.61,0.0002356,2]
[378337964,1754831454600,-982.9,0.0002356,2]
[378337965,1754831454610,-942.57,0.0002356,2]
[378337966,1754831454619,-1164.74,0.0002356,2]
[378337967,1754831454628,-890.83,0.0002356,2]
[378337968,1754831454637,-1107.82,0.0002356,2]
[378337969,1754831454647,-151.0,0.000236,5]
[378337970,1754831454656,-172.00826619,0.00023635,2]
[378337971,1754831454665,-151.0,0.000237,5]
[378337972,1754831454675,-660.0,0.00023724,2]
[378337973,1754831454685,-1000.0,0.00023731,2]
[378337974,1754831454694,-20248.38776214,0.00023735,3]
[378337975,1754831454704,-1000.0,0.00023735,2]
[378337976,1754831454713,-2150.0,0.00023742,2]
[378337977,1754831454723,-971.0,0.00023742,2]
[378337978,1754831454732,-636.0,0.00023742,2]
[378337979,1754831454741,-408.0,0.00023742,2]
[378337980,1754831454751,-416.045,0.00023742,2]
[378337981,1754831454760,-10539.94645766,0.00023786,2]
[378337982,1754831454769,-1374.38,0.000238,2]
[378337983,1754831454779,-216.64838636,0.000238,3]
[378337984,1754831454789,-160.0,0.000238,3]
[378337985,1754831454798,-215.44987349,0.000238,3]
[378337986,1754831454808,-499.38,0.00023825,2]
[378337987,1754831454817,-460.0,0.00023833,2]
[378337988,1754831454826,-460.0,0.00023833,2]
[378337989,1754831454836,-460.0,0.00023833,2]
[378337990,1754831454846,-2333.16,0.00023833,2]
[378337991,1754831454855,-688.53,0.00023833,2]
[378337992,1754831454945,-1478.91,0.00023833,2]
[378337993,1754831454955,-1486.19,0.00023833,2]
[378337994,1754831454964,-1475.74,0.00023833,2]
[378337995,1754831454974,-460.0,0.00023833,2]
[378337996,1754831454983,-460.0,0.00023833,2]
[378337997,1754831454993,-638.15,0.00023833,2]
[378337998,1754831455002,-460.0,0.00023833,2]
[378337999,1754831455011,-460.0,0.00023833,2]
[378338000,1754831455021,-479.62,0.00023834,2]
[378338001,1754831455030,-589.1,0.00023834,2]
[378338002,1754831455039,-870.7,0.00023834,2]
[378338003,1754831455048,-903.0,0.00023834,2]
[378338004,1754831455058,-3431.58,0.00023834,2]
[378338005,1754831455068,-704.59,0.00023834,2]
[378338006,1754831455077,-1262.61,0.00023834,2]
[378338007,1754831455086,-982.9,0.00023834,2]
[378338008,1754831455095,-942.57,0.00023834,2]
[378338009,1754831455105,-1164.74,0.00023834,2]
[378338010,1754831455114,-890.83,0.00023834,2]
[378338011,1754831455123,-1107.82,0.00023834,2]
[378338012,1754831455132,-8047.22513098,0.00023846,2]
[378338013,1754831455142,-1000.0,0.00023855,2]
[378338014,1754831455151,-1000.0,0.00023855,2]
[378338015,1754831455161,-3500.0,0.0002386,2]
[378338016,1754831455170,-3531.02381419,0.0002386,2]
[378338017,1754831455179,-2500.0,0.00023864,2]
[378338018,1754831455189,-1510.51930169,0.00023864,2]
[378338019,1754831455198,-150.077,0.0002387,2]
[378338020,1754831455207,-150.0,0.0002387,2]
[378338021,1754831455216,-220.329,0.0002387,2]
[378338022,1754831455226,-250.0,0.0002387,2]
[378338023,1754831455235,-150.0,0.0002387,2]
[378338024,1754831455244,-250.0,0.0002387,2]
[378338025,1754831455253,-260.992,0.0002387,2]
[378338026,1754831455262,-245.0,0.0002387,2]
[378338027,1754831455272,-219.726,0.0002387,2]
[378338028,1754831455282,-250.0,0.00023883,2]
[378338029,1754831455292,-1000.0,0.00023883,2]
[378338030,1754831455302,-2498.28705815,0.000239,2]
[378338031,1754831455312,-480.0,0.00023927,2]
[378338032,1754831455321,-150.0,0.00023945,2]
[378338033,1754831455331,-383.19,0.00023958,2]
[378338034,1754831455340,-512.33653393,0.00023973,2]
[378338035,1754831455351,-61827.33463414,0.00023998,2]
[378338036,1754831455361,-151.0,0.00023998,7]
[378338037,1754831455370,-1882.27081953,0.00024,2]
[378338038,1754831455379,-151.0,0.00024,6]
[378338039,1754831455389,-20000.0,0.00024,7]
[378338040,1754831455398,-50000.0,0.00024,2]
[378338041,1754831455408,-151.0,0.00024,9]
[378338042,1754831455418,-151.0,0.00024,7]
[378338043,1754831455433,-160.0,0.00024,7]
[378338044,1754831455444,-843.0869304,0.00024,7]
[378338045,1754831455455,-160.0,0.00024,7]
[378338046,1754831455466,-312.16666667,0.00024,7]
[378338047,1754831455478,-160.0,0.00024,7]
[378338048,1754831455488,-461.62346162,0.00024,7]
[378338049,1754831455499,-12668.57659669,0.00024,7]
[378338050,1754831455509,-527.86640923,0.00024,7]
[378338051,1754831455518,-231.96268195,0.00024,7]
[378338052,1754831455528,-160.0,0.00024,7]
[378338053,1754831455537,-216.64838636,0.00024,7]
[378338054,1754831455546,-160.0,0.00024,7]
[378338055,1754831455556,-215.44987349,0.00024,7]
[378338056,1754831455565,-160.0,0.00024,7]
[378338057,1754831455574,-160.0,0.00024,7]
[378338058,1754831455583,-166.065596,0.0002402,2]
[378338059,1754831455594,-2563.0,0.00024048,2]
[378338060,1754831455603,-382.0,0.00024057,3]
[378338061,1754831455614,-2563.0,0.00024098,2]
[378338062,1754831455623,-499.38,0.00024099,2]
[378338063,1754831455632,-151.0,0.000241,6]
[378338064,1754831455641,-151.0,0.000241,10]
[378338065,1754831455651,-460.0,0.00024107,2]
[378338066,1754831455660,-460.0,0.00024107,2]
[378338067,1754831455669,-460.0,0.00024107,2]
[378338068,1754831455678,-2333.16,0.00024107,2]
[378338069,1754831455688,-688.53,0.00024107,2]
[378338070,1754831455697,-1478.91,0.00024107,2]
[378338071,1754831455706,-1486.19,0.00024107,2]
[378338072,1754831455715,-1475.74,0.00024107,2]
[378338073,1754831455724,-460.0,0.00024107,2]
[378338074,1754831455733,-460.0,0.00024107,2]
[378338075,1754831455742,-638.15,0.00024107,2]
[378338076,1754831455752,-460.0,0.00024107,2]
[378338077,1754831455762,-460.0,0.00024107,2]
[378338078,1754831455771,-479.62,0.00024108,2]
[378338079,1754831455780,-589.1,0.00024108,2]
[378338080,1754831455790,-870.7,0.00024108,2]
[378338081,1754831455798,-903.0,0.00024108,2]
[378338082,1754831455808,-3431.58,0.00024108,2]
[378338083,1754831455817,-704.59,0.00024108,2]
[378338084,1754831455827,-1262.61,0.00024108,2]
[378338085,1754831455836,-982.9,0.00024108,2]
[378338086,1754831455845,-942.57,0.00024108,2]
[378338087,1754831455854,-1164.74,0.00024108,2]
[378338088,1754831455864,-890.83,0.00024108,2]
[378338089,1754831455874,-1107.82,0.00024108,2]
[378338090,1754831455883,-167.0,0.00024164,7]
[378338091,1754831455893,-20000.0,0.000242,7]
[378338092,1754831455902,-843.0869304,0.000242,7]
[378338093,1754831455912,-160.0,0.000242,7]
[378338094,1754831455921,-312.16666667,0.000242,7]
[378338095,1754831455930,-160.0,0.000242,7]
[378338096,1754831455940,-461.62346162,0.000242,7]
[378338097,1754831455949,-216.64838636,0.000242,7]
[378338098,1754831455958,-160.0,0.000242,7]
[378338099,1754831455967,-215.44987349,0.000242,7]
[378338100,1754831455976,-238.486764,0.00024256,2]
[378338101,1754831455986,-760.0,0.00024272,2]
[378338102,1754831455995,-283.94114085,0.00024356,13]
[378338103,1754831456004,-499.38,0.00024373,2]
[378338104,1754831456013,-1594.76,0.0002438,2]
[378338105,1754831456023,-460.0,0.00024381,2]
[378338106,1754831456033,-460.0,0.00024381,2]
[378338107,1754831456042,-460.0,0.00024381,2]
[378338108,1754831456051,-2333.16,0.00024381,2]
[378338109,1754831456060,-688.53,0.00024381,2]
[378338110,1754831456069,-1478.91,0.00024381,2]
[378338111,1754831456078,-1486.19,0.00024381,2]
[378338112,1754831456088,-1475.74,0.00024381,2]
[378338113,1754831456097,-460.0,0.00024381,2]
[378338114,1754831456107,-460.0,0.00024381,2]
[378338115,1754831456116,-638.15,0.00024381,2]
[378338116,1754831456125,-460.0,0.00024381,2]
[378338117,1754831456135,-317.29150587,0.00024381,2]
[378338118,1754831456144,-479.62,0.00024382,2]
[378338119,1754831456153,-589.1,0.00024382,2]
[378338120,1754831456162,-870.7,0.00024382,2]
[378338121,1754831456171,-903.0,0.00024382,2]
[378338122,1754831456180,-3431.58,0.00024382,2]
[378338123,1754831456189,-704.59,0.00024382,2]
[378338124,1754831456198,-1262.61,0.00024382,2]
[378338125,1754831456208,-982.9,0.00024382,2]
[378338126,1754831456220,-942.57,0.00024382,2]
[378338127,1754831456230,-890.83,0.00024382,2]
[378338128,1754831456239,-1164.74,0.00024382,2]
[378338129,1754831456248,-1107.82,0.00024382,2]
[378338130,1754831456258,-151.0,0.00024383,2]
[378338131,1754831456267,-19897.22545671,0.00024383,2]
[378338132,1754831456276,-151.0,0.000244,9]
[378338133,1754831456286,-20000.0,0.000244,7]
[378338134,1754831456295,-527.86640923,0.000244,7]
[378338135,1754831456307,-231.96268195,0.000244,7]
[378338136,1754831456320,-1500.0,0.00024403,2]
[378338137,1754831456330,-1500.0,0.00024403,2]
[378338138,1754831456340,-2671.35657035,0.00024408,2]
[378338139,1754831456350,-3000.0,0.00024412,2]
[378338140,1754831456359,-350.0,0.00024431,2]
[378338141,1754831456368,-1504.57187711,0.00024431,2]
[378338142,1754831456377,-151.0,0.000245,6]
[378338143,1754831456387,-151.0,0.000245,7]
[378338144,1754831456396,-151.0,0.000245,9]
[378338145,1754831456406,-20000.0,0.000246,7]
[378338146,1754831456415,-843.0869304,0.000246,7]